fUSD/lending_fUSD_20250111
["ID","MTS","AMOUNT","RATE_DAILY","PERIOD"]
[348478692,1736557849864,-500.0,0.00010821,2]
[348478693,1736557849873,-717.92,0.00010821,2]
[348478694,1736557849945,-500.0,0.00010821,2]
[348478695,1736557849957,-500.0,0.00010821,2]
[348478696,1736557849968,-500.0,0.00010821,2]
[348478697,1736557849979,-500.0,0.00010821,2]
[348478698,1736557849988,-500.0,0.00010821,2]
[348478699,1736557850000,-500.0,0.00010821,2]
[348478700,1736557850010,-500.0,0.00010821,2]
[348478701,1736557850020,-558.16,0.00010821,2]
[348478702,1736557850030,-500.0,0.00010821,2]
[348478703,1736557850039,-500.0,0.00010821,2]
[348478704,1736557850050,-500.0,0.00010821,2]
[348478705,1736557850060,-1450.58,0.00010821,2]
[348478706,1736557850071,-500.0,0.00010821,2]
[348478707,1736557850080,-500.0,0.00010821,2]
[348478708,1736557850090,-500.0,0.00010821,2]
[348478709,1736557850099,-500.0,0.00010821,2]
[348478710,1736557850109,-2637.97,0.00010821,2]
[348478711,1736557850121,-500.0,0.00010821,2]
[348478712,1736557850131,-500.0,0.00010821,2]
[348478713,1736557850141,-500.0,0.00010821,2]
[348478714,1736557850151,-500.0,0.00010821,2]
[348478715,1736557850160,-939.56,0.00010821,2]
[348478716,1736557850171,-500.0,0.00010821,2]
[348478717,1736557850180,-500.0,0.00010821,2]
[348478718,1736557850189,-500.0,0.00010821,2]
[348478719,1736557850199,-742.24,0.00010821,2]
[348478720,1736557850208,-882.41,0.00010821,2]
[348478721,1736557850217,-502.54,0.00010821,2]
[348478722,1736557850226,-500.0,0.00010821,2]
[348478723,1736557850236,-500.0,0.00010821,2]
[348478724,1736557850246,-1328.54,0.00010821,2]
[348478725,1736557850255,-521.61,0.00010821,2]
[348478726,1736557850264,-500.0,0.00010821,2]
[348478727,1736557850274,-570.23,0.00010821,2]
[348478728,1736557850283,-669.9,0.00010821,2]
[348478729,1736557850291,-500.0,0.00010821,2]
[348478730,1736557850300,-500.0,0.00010821,2]
[348478731,1736557850311,-500.0,0.00010821,2]
[348478732,1736557850322,-1727.8,0.00010821,2]
[348478733,1736557850334,-832.85,0.00010821,2]
[348478734,1736557850344,-500.0,0.00010821,2]
[348478735,1736557850355,-500.0,0.00010821,2]
[348478736,1736557850364,-3854.35,0.00010821,2]
[348478737,1736557850373,-500.0,0.00010821,2]
[348478738,1736557850383,-500.0,0.00010821,2]
[348478739,1736557850392,-500.0,0.00010821,2]
[348478740,1736557850402,-500.0,0.00010821,2]
[348478741,1736557850411,-381.66682101,0.00010821,2]
[348478742,1736557850420,-500.0,0.00010821,2]
[348478743,1736557850430,-500.0,0.00010821,2]
[348478744,1736557850439,-500.0,0.00010821,2]
[348478745,1736557850449,-524.62,0.00010821,2]
[348478746,1736557850458,-514.69,0.00010821,2]
[348478747,1736557850468,-778.85,0.00010821,2]
[348478748,1736557850478,-370.41470752,0.00010821,2]
[348478749,1736557850487,-500.0,0.00010821,2]
[348478750,1736557850501,-1099.04,0.00010821,2]
[348478751,1736557850509,-1177.86,0.00010821,2]
[348478752,1736557850518,-500.0,0.00010821,2]
[348478753,1736557850527,-1535.8,0.00010821,2]
[348478754,1736557850536,-500.0,0.00010821,2]
[348478755,1736557850545,-2814.65,0.00010821,2]
[348478756,1736557850555,-500.0,0.00010821,2]
[348478757,1736557850566,-961.8,0.00010821,2]
[348478758,1736557850576,-719.2,0.00010821,2]
[348478759,1736557850586,-500.0,0.00010821,2]
[348478760,1736557850596,-1194.13,0.00010821,2]
[348478761,1736557850605,-1091.95,0.00010821,2]
[348478762,1736557850614,-2542.34,0.00010821,2]
[348478763,1736557850623,-500.0,0.00010821,2]
[348478764,1736557850633,-500.0,0.00010821,2]
[348478765,1736557850642,-750.07,0.00010821,2]
[348478766,1736557850651,-500.0,0.00010821,2]
[348478767,1736557850663,-2417.55,0.00010821,2]
[348478768,1736557850674,-1945.88,0.00010821,2]
[348478769,1736557850685,-1209.3,0.00010821,2]
[348478770,1736557850695,-1511.96,0.00010821,2]
[348478771,1736557850705,-500.0,0.00010821,2]
[348478772,1736557850715,-1046.11,0.00010821,2]
[348478773,1736557850725,-500.0,0.00010821,2]
[348478774,1736557850734,-1071.3,0.00010821,2]
[348478775,1736557850744,-500.0,0.00010821,2]
[348478776,1736557850754,-2138.11,0.00010821,2]
[348478777,1736557850765,-864.38,0.00010821,2]
[348478778,1736557850776,-500.0,0.00010821,2]
[348478779,1736557850787,-1515.65,0.00010821,2]
[348478780,1736557850797,-2746.89,0.00010821,2]
[348478781,1736557850808,-1158.06,0.00010821,2]
[348478782,1736557850817,-1040.54,0.00010821,2]
[348478783,1736557850827,-2740.46,0.00010821,2]
[348478784,1736557850836,-2384.25,0.00010821,2]
[348478785,1736557850846,-2824.35,0.00010821,2]
[348478786,1736557850856,-658.38,0.00010821,2]
[348478787,1736557850866,-500.0,0.00010821,2]
[348478788,1736557850875,-1031.95,0.00010821,2]
[348478789,1736557850886,-335.03,0.00010821,2]
[348478790,1736557850896,-2218.44,0.00010821,2]
[348478791,1736557850906,-500.05,0.00010821,2]
[348478792,1736557850915,-584.84,0.00010821,2]
[348478793,1736557850924,-2919.91,0.00010821,2]
[348478794,1736557850933,-500.0,0.00010821,2]
[348478795,1736557850943,-2641.79,0.00010821,2]
[348478796,1736557850953,-807.052258,0.00010821,2]
[348478797,1736557850962,-500.0,0.00010821,2]
[348478798,1736557850973,-500.0,0.00010821,2]
[348478799,1736557850983,-865.0,0.00010821,2]
[348478800,1736557850993,-688.83,0.00010821,2]
[348478801,1736557851003,-1064.0,0.00010821,2]
[348478802,1736557851022,-500.0,0.00010821,2]
[348478803,1736557851034,-500.0,0.00010821,2]
[348478804,1736557851046,-1192.04,0.00010821,2]
[348478805,1736557851055,-516.01,0.00010821,2]
[348478806,1736557851067,-500.0,0.00010821,2]
[348478807,1736557851077,-500.0,0.00010821,2]
[348478808,1736557851087,-684.774458,0.00010821,2]
[348478809,1736557851097,-1285.61,0.00010821,2]
[348478810,1736557851107,-1025.13,0.00010821,2]
[348478811,1736557851117,-2275.73,0.00010821,2]
[348478812,1736557851128,-500.0,0.00010821,2]
[348478813,1736557851138,-500.0,0.00010821,2]
[348478814,1736557851147,-500.0,0.00010821,2]
[348478815,1736557851157,-1336.76,0.00010821,2]
[348478816,1736557851167,-2057.4,0.00010821,2]
[348478817,1736557851178,-747.45,0.00010821,2]
[348478818,1736557851188,-500.0,0.00010821,2]
[348478819,1736557851198,-500.0,0.00010821,2]
[348478820,1736557851208,-150.0,0.00010827,2]
[348478821,1736557851218,-150.0,0.00010831,2]
[348478822,1736557851229,-150.0,0.00010832,2]
[348478823,1736557851239,-1874.33314788,0.00010835,2]
[348478824,1736557851249,-1500.0,0.00010836,2]
[348478825,1736557851259,-150.0,0.00010837,2]
[348478826,1736557851269,-639.0,0.00010847,2]
[348478827,1736557851279,-150.0,0.00010848,2]
[348478828,1736557851289,-2477.85506199,0.00010857,2]
[348478829,1736557851299,-224.90186426,0.00010857,2]
[348478830,1736557851310,-4886.6833277,0.00010857,2]
[348478831,1736557851319,-150.0,0.00010865,2]
[348478832,1736557851330,-150.0,0.00010867,2]
[348478833,1736557851341,-639.0,0.00010875,2]
[348478834,1736557851350,-500.0,0.00010879,2]
[348478835,1736557851360,-168498.01335771,0.0001088,2]
[348478836,1736557851370,-1803.31994665,0.0001088,2]
[348478837,1736557851380,-150.0,0.00010885,2]
[348478838,1736557851391,-150.0,0.00010888,2]
[348478839,1736557851400,-150.0,0.00010899,2]
[348478840,1736557851411,-857.064147,0.000109,2]
[348478841,1736557851421,-1500.0,0.000109,2]
[348478842,1736557851431,-203.56766422,0.000109,2]
[348478843,1736557851440,-639.0,0.00010902,2]
[348478844,1736557851451,-1500.0,0.00010913,2]
[348478845,1736557851462,-150.0,0.00010914,2]
[348478846,1736557851473,-1500.0,0.00010928,2]
[348478847,1736557851483,-639.0,0.0001093,2]
[348478848,1736557851495,-2271.0,0.00010932,2]
[348478849,1736557851507,-1500.0,0.00010942,2]
[348478850,1736557851519,-3404.9251349,0.00010949,2]
[348478851,1736557851535,-1772.0887017,0.00010949,2]
[348478852,1736557851546,-19665.01629224,0.00010953,3]
[348478853,1736557851557,-500.0,0.00010956,2]
[348478854,1736557851570,-500.0,0.00010956,2]
[348478855,1736557851580,-639.0,0.00010957,2]
[348478856,1736557851590,-444773.60328151,0.00010957,2]
[348478857,1736557851922,-490.44403302,0.00010957,2]
[348478858,1736557851939,-52378.72422904,0.00010957,2]
[348478859,1736557851952,-50130.70468253,0.00010957,2]
[348478860,1736557851966,-22962.09038652,0.00010957,2]
[348478861,1736557852229,-500.0,0.00010273,2]
[348478862,1736557852240,-500.0,0.00010547,2]
[348478863,1736557852251,-500.0,0.00010821,2]
[348478864,1736557852262,-1758.19,0.00010821,2]
[348478865,1736557852271,-500.0,0.00010956,2]
[348478866,1736557852280,-500.0,0.00010956,2]
[348478867,1736557852290,-500.0,0.00010956,2]
[348478868,1736557852300,-42550.0302669,0.00010957,2]
[348478869,1736557852315,-4086.18226794,0.00010957,2]
[348478870,1736557852328,-1522.9792,0.00010957,2]
[348478871,1736558086222,-306.40756494,0.000135,30]
[348478872,1736558107349,-1194.0,0.000139,31]
[348478873,1736558111160,-121.21,0.000139,31]
[348478874,1736558111194,-1315.21,0.000139,31]
[348478875,1736558111227,-63.58,0.000139,31]
[348478877,1736558614622,1508.89330822,0.0002,120]
[348478878,1736558646929,746.03,8.219e-05,2]
[348478893,1736559031902,-196.67,9.318e-05,2]
[348478894,1736559031913,-415.35,9.336e-05,2]
[348478895,1736559031924,-1000.0,9.45e-05,2]
[348478896,1736559031935,-171.56,9.505e-05,2]
[348478897,1736559031944,-250.0,9.511e-05,2]
[348478898,1736559031960,-250.0,9.662e-05,2]
[348478899,1736559031971,-187.98,9.699e-05,2]
[348478900,1736559031981,-250.0,9.724e-05,2]
[348478901,1736559031991,-6500.0,9.8e-05,2]
[348478902,1736559032001,-300.0,9.898e-05,2]
[348478903,1736559032011,-1000.0,9.899e-05,2]
[348478904,1736559032022,-2055.7938,9.899e-05,2]
[348478905,1736559032031,-2412.81891742,9.9e-05,2]
[348478906,1736559032056,-337.06151267,9.9e-05,2]
[348478907,1736559032068,-550.62852736,9.9e-05,2]
[348478908,1736559032080,-2606.44216162,9.9e-05,2]
[348478909,1736559032092,-3538.9389726,9.9e-05,2]
[348478910,1736559032104,-11414.89060833,9.9e-05,2]
[348478911,1736559032114,-5000.0,9.9e-05,2]
[348478912,1736559032124,-35054.4017,9.9e-05,2]
[348478913,1736559032133,-500.0,9.973e-05,2]
[348478914,1736559032144,-502.12075007,9.999e-05,2]
[348478915,1736559032154,-500.0,9.999e-05,2]
[348478916,1736559032163,-500.0,9.999e-05,2]
[348478917,1736559032173,-500.0,9.999e-05,2]
[348478918,1736559032183,-500.0,9.999e-05,2]
[348478919,1736559032193,-2430.7,9.999e-05,2]
[348478920,1736559032203,-500.0,9.999e-05,2]
[348478921,1736559032213,-500.0,9.999e-05,2]
[348478922,1736559032224,-500.0,9.999e-05,2]
[348478923,1736559032234,-500.0,9.999e-05,2]
[348478924,1736559032244,-500.0,9.999e-05,2]
[348478925,1736559032254,-500.0,9.999e-05,2]
[348478926,1736559032263,-500.0,9.999e-05,2]
[348478927,1736559032275,-1031.8,9.999e-05,2]
[348478928,1736559032285,-500.0,9.999e-05,2]
[348478929,1736559032295,-500.0,9.999e-05,2]
[348478930,1736559032306,-500.0,9.999e-05,2]
[348478931,1736559032317,-500.0,9.999e-05,2]
[348478932,1736559032327,-500.0,9.999e-05,2]
[348478933,1736559032338,-500.0,9.999e-05,2]
[348478934,1736559032347,-500.0,9.999e-05,2]
[348478935,1736559032357,-500.0,9.999e-05,2]
[348478936,1736559032367,-1581.54,9.999e-05,2]
[348478937,1736559032377,-500.0,9.999e-05,2]
[348478938,1736559032387,-500.0,9.999e-05,2]
[348478939,1736559032397,-500.0,9.999e-05,2]
[348478940,1736559032407,-500.0,9.999e-05,2]
[348478941,1736559032418,-500.0,9.999e-05,2]
[348478942,1736559032428,-899.08,9.999e-05,2]
[348478943,1736559032438,-500.0,9.999e-05,2]
[348478944,1736559032449,-500.0,9.999e-05,2]
[348478945,1736559032459,-500.0,9.999e-05,2]
[348478946,1736559032470,-500.0,9.999e-05,2]
[348478947,1736559032488,-892.71,9.999e-05,2]
[348478948,1736559032499,-500.0,9.999e-05,2]
[348478949,1736559032508,-500.0,9.999e-05,2]
[348478950,1736559032518,-500.0,9.999e-05,2]
[348478951,1736559032528,-500.0,9.999e-05,2]
[348478952,1736559032538,-500.0,9.999e-05,2]
[348478953,1736559032548,-822.34,9.999e-05,2]
[348478954,1736559032561,-500.0,9.999e-05,2]
[348478955,1736559032572,-926.12,9.999e-05,2]
[348478956,1736559032582,-500.0,9.999e-05,2]
[348478957,1736559032591,-500.0,9.999e-05,2]
[348478958,1736559032601,-500.0,9.999e-05,2]
[348478959,1736559032611,-500.0,9.999e-05,2]
[348478960,1736559032621,-944.1,9.999e-05,2]
[348478961,1736559032631,-1769.94,9.999e-05,2]
[348478962,1736559032642,-500.0,9.999e-05,2]
[348478963,1736559032654,-500.0,9.999e-05,2]
[348478964,1736559032664,-500.0,9.999e-05,2]
[348478965,1736559032674,-500.0,9.999e-05,2]
[348478966,1736559032685,-2032.44,9.999e-05,2]
[348478967,1736559032695,-500.0,9.999e-05,2]
[348478968,1736559032706,-500.0,9.999e-05,2]
[348478969,1736559032715,-500.0,9.999e-05,2]
[348478970,1736559032725,-500.0,9.999e-05,2]
[348478971,1736559032735,-852.96,9.999e-05,2]
[348478972,1736559032745,-1007.75,9.999e-05,2]
[348478973,1736559032755,-2728.88,9.999e-05,2]
[348478974,1736559032765,-500.0,9.999e-05,2]
[348478975,1736559032775,-2370.67,9.999e-05,2]
[348478976,1736559032785,-500.0,9.999e-05,2]
[348478977,1736559032795,-1033.97,9.999e-05,2]
[348478978,1736559032805,-500.0,9.999e-05,2]
[348478979,1736559032815,-2434.4,9.999e-05,2]
[348478980,1736559032824,-500.0,9.999e-05,2]
[348478981,1736559032835,-620.51,9.999e-05,2]
[348478982,1736559032845,-500.0,9.999e-05,2]
[348478983,1736559032854,-500.0,9.999e-05,2]
[348478984,1736559032864,-500.0,9.999e-05,2]
[348478985,1736559032874,-1204.16,9.999e-05,2]
[348478986,1736559032884,-744.32,9.999e-05,2]
[348478987,1736559032895,-500.0,9.999e-05,2]
[348478988,1736559032905,-594.86,9.999e-05,2]
[348478989,1736559032915,-500.0,9.999e-05,2]
[348478990,1736559032925,-599.33,9.999e-05,2]
[348478991,1736559032935,-500.0,9.999e-05,2]
[348478992,1736559032945,-500.0,9.999e-05,2]
[348478993,1736559032955,-500.0,9.999e-05,2]
[348478994,1736559032965,-500.0,9.999e-05,2]
[348478995,1736559032982,-2171.06,9.999e-05,2]
[348478996,1736559032996,-500.0,9.999e-05,2]
[348478997,1736559033006,-500.0,9.999e-05,2]
[348478998,1736559033016,-500.0,9.999e-05,2]
[348478999,1736559033027,-500.0,9.999e-05,2]
[348479000,1736559033037,-1318.08,9.999e-05,2]
[348479001,1736559033047,-500.0,9.999e-05,2]
[348479002,1736559033057,-886.57,9.999e-05,2]
[348479003,1736559033068,-1478.24,9.999e-05,2]
[348479004,1736559033078,-1848.32,9.999e-05,2]
[348479005,1736559033088,-500.0,9.999e-05,2]
[348479006,1736559033099,-647.44,9.999e-05,2]
[348479007,1736559033109,-768.25,9.999e-05,2]
[348479008,1736559033119,-500.0,9.999e-05,2]
[348479009,1736559033128,-999.72,9.999e-05,2]
[348479010,1736559033139,-1154.55,9.999e-05,2]
[348479011,1736559033149,-619.29,9.999e-05,2]
[348479012,1736559033160,-569.78,9.999e-05,2]
[348479013,1736559033171,-500.0,9.999e-05,2]
[348479014,1736559033181,-773.61,9.999e-05,2]
[348479015,1736559033191,-1152.08,9.999e-05,2]
[348479016,1736559033201,-500.0,9.999e-05,2]
[348479017,1736559033211,-500.0,9.999e-05,2]
[348479018,1736559033222,-597.60722042,9.999e-05,2]
[348479019,1736559033233,-500.0,9.999e-05,2]
[348479020,1736559033243,-500.0,9.999e-05,2]
[348479021,1736559033253,-500.0,9.999e-05,2]
[348479022,1736559033264,-500.0,9.999e-05,2]
[348479023,1736559033274,-500.0,9.999e-05,2]
[348479024,1736559033285,-1120.9,9.999e-05,2]
[348479025,1736559033296,-946.97,9.999e-05,2]
[348479026,1736559033309,-521.50034705,9.999e-05,2]
[348479027,1736559033319,-394.76908841,9.999e-05,2]
[348479028,1736559033330,-514.62388617,9.999e-05,2]
[348479029,1736559033340,-333.63989365,9.999e-05,2]
[348479030,1736559033351,-500.0,9.999e-05,2]
[348479031,1736559033361,-500.0,9.999e-05,2]
[348479032,1736559033371,-500.0,9.999e-05,2]
[348479033,1736559033381,-500.0,9.999e-05,2]
[348479034,1736559033392,-500.0,9.999e-05,2]
[348479035,1736559033402,-277.926218,9.999e-05,2]
[348479036,1736559033412,-500.0,9.999e-05,2]
[348479037,1736559033423,-500.0,9.999e-05,2]
[348479038,1736559033433,-374.30299285,9.999e-05,2]
[348479039,1736559033443,-500.0,9.999e-05,2]
[348479040,1736559033453,-492.3000393,9.999e-05,2]
[348479041,1736559033463,-904.77321996,0.0001,3]
[348479042,1736559033474,-939474.84241053,0.0001,2]
[348479043,1736559033508,-1979.46335,0.0001,2]
[348479057,1736559037739,-622.30998727,9.999e-05,2]
[348479058,1736559037751,-36.57001273,9.999e-05,2]
[348479059,1736559037761,-318.60090409,9.999e-05,2]
[348479061,1736559037773,-181.39909591,9.999e-05,2]
[348479062,1736559037783,-500.0,9.999e-05,2]
[348479063,1736559037793,-78.10088109,0.0001,2]
[348479064,1736559037891,-365.10566265,0.0001,2]
[348479065,1736559037904,-9359.97713324,0.0001,2]
[348479066,1736559038050,-544.32727247,0.0001,2]
[348479067,1736559038062,-6927.16781784,0.0001,2]
[348479090,1736559038420,-8178.4,0.0001,2]
[348479092,1736559038432,-2675.0857195,0.0001,2]
[348479095,1736559038444,-4869.19156278,0.0001,2]
[348479273,1736559040169,-1851.54606576,0.0001,2]
[348479276,1736559040182,-662.8009845,0.0001,2]
[348479432,1736559042921,-500.0,9.999e-05,2]
[348479433,1736559042932,-500.0,9.999e-05,2]
[348479435,1736559042946,-500.0,9.999e-05,2]
[348479437,1736559042957,-4531.29735747,0.0001,2]
[348479439,1736559042969,-2285.61114635,0.0001,2]
[348479441,1736559042981,-4927.02682689,0.0001,2]
[348479443,1736559042992,-1349.03038877,0.0001,2]
[348479452,1736559043067,-12194.4726254,0.0001,2]
[348479454,1736559043078,-3536.28,0.0001,2]
[348479468,1736559045943,-509.43204128,9.999e-05,2]
[348479469,1736559045960,-1416.08,9.999e-05,2]
[348479470,1736559045974,-500.0,9.999e-05,2]
[348479471,1736559045991,-5454.48795872,0.0001,2]
[348479472,1736559046008,-2263.0641,0.0001,2]
[348479473,1736559046025,-8458.00954626,0.0001,2]
[348479474,1736559046138,-550.85,0.0001,2]
[348479475,1736559046155,-62541.88490991,0.0001,2]
[348479476,1736559046172,-3789.13606921,0.0001,2]
[348479477,1736559046188,-7646.37243251,0.0001,2]
[348479479,1736559046202,-626.04759607,0.0001,2]
[348479491,1736559046320,-75.76507506,0.0001,2]
[348479499,1736560061232,751.63,8.219e-05,2]
[348479502,1736560232134,-509.22801043,8.953e-05,2]
[348479503,1736560232147,-764.09346099,8.953e-05,2]
[348479504,1736560232162,-1276.63304039,8.953e-05,2]
[348479505,1736560232175,-4643.56715119,8.953e-05,2]
[348479506,1736560232187,-282.88287137,8.999e-05,2]
[348479507,1736560232197,-300.0,8.999e-05,2]
[348479508,1736560232207,-4977.54997744,9e-05,2]
[348479509,1736560232346,-469.30872008,9e-05,2]
[348479510,1736560232836,-3568.87164521,9e-05,2]
[348479513,1736560232848,-4823.24517162,9e-05,2]
[348479540,1736560238005,-9334.11925546,9e-05,2]
[348479541,1736560238018,-60.96677337,9e-05,2]
[348479542,1736560238028,-9350.85053418,9.278e-05,2]
[348479543,1736560238040,-564.97946582,9.278e-05,2]
[348479544,1736560238049,-333.35,9.289e-05,2]
[348479546,1736560238059,-250.0,9.291e-05,2]
[348479548,1736560238069,-208.76,9.317e-05,2]
[348479549,1736560238079,-1000.0,9.359e-05,2]
[348479550,1736560238088,-150.0,9.507e-05,2]
[348479551,1736560238098,-500.0,9.507e-05,2]
[348479552,1736560238108,-305.59,9.527e-05,2]
[348479553,1736560238117,-250.0,9.527e-05,2]
[348479554,1736560238127,-108.46104617,9.53e-05,2]
[348479557,1736560238396,-668.77895383,9.53e-05,2]
[348479559,1736560238405,-420.0,9.899e-05,2]
[348479561,1736560238415,-1195.22104617,9.9e-05,2]
[348479563,1736560238427,-807.04895383,9.9e-05,2]
[348479565,1736560238437,-223.1735,9.9e-05,2]
[348479567,1736560238447,-1105.73,9.999e-05,2]
[348479569,1736560238457,-560.864536,9.999e-05,2]
[348479571,1736560238466,-658.973186,9.999e-05,2]
[348479573,1736560238476,-506.82550558,9.999e-05,2]
[348479575,1736560238485,-507.17326333,9.999e-05,2]
[348479577,1736560238496,-507.27544312,9.999e-05,2]
[348479579,1736560238506,-500.0,9.999e-05,2]
[348479581,1736560238515,-508.7341811,9.999e-05,2]
[348479583,1736560238525,-513.0484127,9.999e-05,2]
[348479584,1736560238535,-508.36356911,9.999e-05,2]
[348479586,1736560238545,-509.91845297,9.999e-05,2]
[348479588,1736560238554,-506.24917189,9.999e-05,2]
[348479590,1736560238564,-500.0,9.999e-05,2]
[348479592,1736560238573,-508.05448666,9.999e-05,2]
[348479595,1736560238583,-509.67464335,9.999e-05,2]
[348479597,1736560238592,-507.96660595,9.999e-05,2]
[348479599,1736560238601,-508.6924195,9.999e-05,2]
[348479601,1736560238610,-509.04944814,9.999e-05,2]
[348479603,1736560238619,-18.73875483,9.999e-05,2]
[348479606,1736560238632,-488.2129785,9.999e-05,2]
[348479608,1736560238641,-508.76022414,9.999e-05,2]
[348479610,1736560238650,-151.80035349,9.999e-05,2]
[348479612,1736560238659,-508.54021191,9.999e-05,2]
[348479614,1736560238669,-501.20864435,9.999e-05,2]
[348479616,1736560238682,-372.49287533,9.999e-05,2]
[348479618,1736560238691,-505.89360941,9.999e-05,2]
[348479620,1736560238703,-507.14258016,9.999e-05,2]
[348479622,1736560238713,-500.0,9.999e-05,2]
[348479624,1736560238722,-500.0,9.999e-05,2]
[348479626,1736560238731,-500.0,9.999e-05,2]
[348479628,1736560238740,-274.89088978,9.999e-05,2]
[348479630,1736560238753,-500.0,9.999e-05,2]
[348479632,1736560238763,-513.5965891,9.999e-05,2]
[348479634,1736560238773,-500.0,9.999e-05,2]
[348479636,1736560238782,-500.0,9.999e-05,2]
[348479638,1736560238791,-500.0,9.999e-05,2]
[348479640,1736560238801,-505.30264586,9.999e-05,2]
[348479642,1736560238810,-500.0,9.999e-05,2]
[348479643,1736560238819,-514.05533528,9.999e-05,2]
[348479645,1736560238828,-513.43268155,9.999e-05,2]
[348479647,1736560238839,-514.92921037,9.999e-05,2]
[348479650,1736560238848,-507.36863144,9.999e-05,2]
[348479651,1736560238859,-570.9,9.999e-05,2]
[348479654,1736560238869,-500.0,9.999e-05,2]
[348479656,1736560238878,-500.0,9.999e-05,2]
[348479657,1736560238887,-500.0,9.999e-05,2]
[348479659,1736560238897,-500.0,9.999e-05,2]
[348479661,1736560238906,-507.3432494,9.999e-05,2]
[348479663,1736560238915,-509.38061751,9.999e-05,2]
[348479665,1736560238925,-500.0,9.999e-05,2]
[348479667,1736560238934,-508.96256621,9.999e-05,2]
[348479670,1736560238944,-500.0,9.999e-05,2]
[348479672,1736560238955,-506.81477268,9.999e-05,2]
[348479674,1736560238965,-500.0,9.999e-05,2]
[348479676,1736560238974,-500.0,9.999e-05,2]
[348479678,1736560238984,-500.0,9.999e-05,2]
[348479680,1736560238993,-500.0,9.999e-05,2]
[348479682,1736560239003,-500.0,9.999e-05,2]
[348479684,1736560239012,-502.516607,9.999e-05,2]
[348479686,1736560239022,-507.24256475,9.999e-05,2]
[348479688,1736560239032,-500.0,9.999e-05,2]
[348479690,1736560239042,-500.0,9.999e-05,2]
[348479692,1736560239051,-451.88304681,9.999e-05,2]
[348479694,1736560239061,-506.82799483,9.999e-05,2]
[348479696,1736560239072,-621.84,9.999e-05,2]
[348479698,1736560239082,-500.0,9.999e-05,2]
[348479700,1736560239091,-500.0,9.999e-05,2]
[348479701,1736560239101,-500.0,9.999e-05,2]
[348479703,1736560239111,-500.0,9.999e-05,2]
[348479706,1736560239122,-574.4,9.999e-05,2]
[348479707,1736560239132,-500.0,9.999e-05,2]
[348479709,1736560239141,-392.15011058,9.999e-05,2]
[348479711,1736560239151,-575.22,9.999e-05,2]
[348479713,1736560239161,-519.27018545,9.999e-05,2]
[348479715,1736560239171,-500.0,9.999e-05,2]
[348479717,1736560239180,-585.34777356,9.999e-05,2]
[348479719,1736560239189,-584.81781759,9.999e-05,2]
[348479721,1736560239199,-500.0,9.999e-05,2]
[348479723,1736560239209,-518.04485195,9.999e-05,2]
[348479726,1736560239218,-506.38394766,9.999e-05,2]
[348479728,1736560239229,-510.54246144,9.999e-05,2]
[348479729,1736560239239,-548.06,9.999e-05,2]
[348479731,1736560239248,-500.0,9.999e-05,2]
[348479733,1736560239258,-506.29200213,9.999e-05,2]
[348479735,1736560239269,-508.92780538,9.999e-05,2]
[348479738,1736560239278,-500.0,9.999e-05,2]
[348479739,1736560239288,-500.0,9.999e-05,2]
[348479741,1736560239298,-565.27026984,9.999e-05,2]
[348479760,1736560239533,-256.69442284,9.999e-05,2]
[348479762,1736560239544,-507.86258031,9.999e-05,2]
[348479764,1736560239555,-500.0,9.999e-05,2]
[348479766,1736560239565,-508.94628157,9.999e-05,2]
[348479768,1736560239575,-500.0,9.999e-05,2]
[348479770,1736560239586,-612.67834733,9.999e-05,2]
[348479772,1736560239596,-500.0,9.999e-05,2]
[348479774,1736560239605,-500.0,9.999e-05,2]
[348479776,1736560239614,-784.48,9.999e-05,2]
[348479777,1736560239624,-500.0,9.999e-05,2]